[Event "*** Titled Tuesday Blitz AM"]
[Site "Chess.com"]
[Date "2020.01.07"]
[Round "4"]
[White "Borsuk_Konstantin"]
[Black "smshk35"]
[Result "1-0"]
[WhiteElo "2525"]
[BlackElo "2335"]
[TimeControl "180+2"]
[EndTime "9:50:01 PST"]
[Termination "Borsuk_Konstantin won by resignation"]

1. d4 {[%clk 0:03:01.9]} 1... Nf6 {[%clk 0:03:00.3]} 2. c4 {[%clk 0:03:02.3]}
2... g6 {[%clk 0:02:59.8]} 3. Nc3 {[%clk 0:03:02.9]} 3... Bg7 {[%clk 0:03:01]}
4. e4 {[%clk 0:03:03.8]} 4... d6 {[%clk 0:03:02.5]} 5. f3 {[%clk 0:03:05]} 5...
O-O {[%clk 0:03:03.5]} 6. Be3 {[%clk 0:03:06.5]} 6... a6 {[%clk 0:03:04.9]} 7.
Qd2 {[%clk 0:03:06.3]} 7... Nbd7 {[%clk 0:03:05.7]} 8. O-O-O {[%clk 0:02:38.2]}
8... c5 {[%clk 0:03:05.3]} 9. dxc5 {[%clk 0:02:31.7]} 9... dxc5 {[%clk
0:03:03.3]} 10. Bxc5 {[%clk 0:02:32.6]} 10... b5 {[%clk 0:03:02.4]} 11. cxb5
{[%clk 0:02:25.9]} 11... Bb7 {[%clk 0:02:46.9]} 12. bxa6 {[%clk 0:02:18]} 12...
Bxa6 {[%clk 0:02:47.5]} 13. Bxa6 {[%clk 0:02:18.2]} 13... Rxa6 {[%clk
0:02:49.4]} 14. Nge2 {[%clk 0:02:15.5]} 14... Qc7 {[%clk 0:02:50]} 15. Bxe7
{[%clk 0:02:15.3]} 15... Rc8 {[%clk 0:02:49.7]} 16. Kb1 {[%clk 0:02:08.4]} 16...
Qb7 {[%clk 0:02:44.5]} 17. Bxf6 {[%clk 0:01:48.3]} 17... Nxf6 {[%clk 0:02:43.6]}
18. e5 {[%clk 0:01:47.5]} 18... Ne8 {[%clk 0:02:40]} 19. f4 {[%clk 0:01:42.7]}
19... Rb8 {[%clk 0:02:30.3]} 20. Nd4 {[%clk 0:01:15.1]} 20... Rb6 {[%clk
0:02:27]} 21. Nb3 {[%clk 0:01:15.4]} 21... Nc7 {[%clk 0:02:19.8]} 22. Qd7 {[%clk
0:01:13.8]} 22... Kf8 {[%clk 0:01:54.5]} 23. Rd2 {[%clk 0:01:12.7]} 23... Kg8
{[%clk 0:01:39.9]} 24. Rhd1 {[%clk 0:01:11.1]} 24... Bf8 {[%clk 0:01:41.4]} 25.
Nd5 {[%clk 0:01:09]} 25... Rxb3 {[%clk 0:01:29.2]} 26. axb3 {[%clk 0:01:06.7]}
26... Qxb3 {[%clk 0:01:28.4]} 27. Qxc7 {[%clk 0:00:57.9]} 27... Ra8 {[%clk
0:01:28.2]} 28. Nc3 {[%clk 0:00:58.4]} 28... Qb4 {[%clk 0:01:21.3]} 29. Rd8
{[%clk 0:00:54.7]} 1-0

[Event "*** Titled Tuesday Blitz AM"]
[Site "Chess.com"]
[Date "2020.01.07"]
[Round "4"]
[White "manitodeplomo"]
[Black "dolynachess"]
[Result "1-0"]
[WhiteElo "2687"]
[BlackElo "2375"]
[TimeControl "180+2"]
[EndTime "9:50:04 PST"]
[Termination "manitodeplomo won by resignation"]

1. d4 {[%clk 0:03:01.9]} 1... Nf6 {[%clk 0:03:00]} 2. c4 {[%clk 0:03:02.2]} 2...
g6 {[%clk 0:02:58.7]} 3. Nc3 {[%clk 0:03:03.5]} 3... d5 {[%clk 0:02:59.9]} 4.
Bf4 {[%clk 0:03:03.5]} 4... Bg7 {[%clk 0:02:59.1]} 5. e3 {[%clk 0:03:04.9]} 5...
O-O {[%clk 0:02:59.9]} 6. Rc1 {[%clk 0:03:06.1]} 6... c6 {[%clk 0:03:00.3]} 7.
h3 {[%clk 0:03:06.4]} 7... Ne4 {[%clk 0:02:44.8]} 8. Nf3 {[%clk 0:03:02.4]} 8...
Bf5 {[%clk 0:02:37.7]} 9. Be2 {[%clk 0:02:59.4]} 9... h6 {[%clk 0:02:32.5]} 10.
O-O {[%clk 0:02:59.7]} 10... Nxc3 {[%clk 0:02:25]} 11. Rxc3 {[%clk 0:02:55.3]}
11... dxc4 {[%clk 0:02:16.7]} 12. Bxc4 {[%clk 0:02:54.8]} 12... Nd7 {[%clk
0:02:17.5]} 13. a3 {[%clk 0:02:50.1]} 13... a5 {[%clk 0:02:17.3]} 14. Ba2 {[%clk
0:02:49.8]} 14... a4 {[%clk 0:02:14.6]} 15. Qe2 {[%clk 0:02:47.9]} 15... Nf6
{[%clk 0:02:08.4]} 16. Bh2 {[%clk 0:02:40.9]} 16... Be4 {[%clk 0:01:56.1]} 17.
Nd2 {[%clk 0:02:39.5]} 17... Bd5 {[%clk 0:01:56.5]} 18. Bb1 {[%clk 0:02:39.7]}
18... Be6 {[%clk 0:01:41.8]} 19. Rcc1 {[%clk 0:02:32.9]} 19... Qa5 {[%clk
0:01:17.9]} 20. Nc4 {[%clk 0:02:26]} 20... Qh5 {[%clk 0:01:14]} 21. f3 {[%clk
0:02:08.7]} 21... Rfd8 {[%clk 0:01:07.6]} 22. Rfd1 {[%clk 0:02:07.7]} 22... Qg5
{[%clk 0:00:30.1]} 23. Ne5 {[%clk 0:02:05.4]} 23... Nd7 {[%clk 0:00:21.5]} 24.
Nd3 {[%clk 0:01:57.4]} 24... Bb3 {[%clk 0:00:15]} 25. Re1 {[%clk 0:01:56.7]}
25... Re8 {[%clk 0:00:15.1]} 26. Qf2 {[%clk 0:01:55.5]} 26... e5 {[%clk
0:00:15.6]} 27. dxe5 {[%clk 0:01:55.9]} 27... Nxe5 {[%clk 0:00:15.9]} 28. Bxe5
{[%clk 0:01:56.2]} 28... Bxe5 {[%clk 0:00:16.2]} 29. f4 {[%clk 0:01:57.7]} 1-0

[Event "*** Titled Tuesday Blitz AM"]
[Site "Chess.com"]
[Date "2020.01.07"]
[Round "4"]
[White "mohssenbinaddi"]
[Black "Quiet_Desperation"]
[Result "0-1"]
[WhiteElo "2214"]
[BlackElo "2430"]
[TimeControl "180+2"]
[EndTime "9:50:19 PST"]
[Termination "Quiet_Desperation won by resignation"]

1. d4 {[%clk 0:03:01.9]} 1... Nf6 {[%clk 0:03:00.9]} 2. Nf3 {[%clk 0:03:03.1]}
2... e6 {[%clk 0:03:02.6]} 3. g3 {[%clk 0:03:04.7]} 3... d5 {[%clk 0:03:02.1]}
4. Bg2 {[%clk 0:03:06.6]} 4... c6 {[%clk 0:03:03.6]} 5. O-O {[%clk 0:03:07.8]}
5... Be7 {[%clk 0:03:05.3]} 6. c4 {[%clk 0:03:09.2]} 6... O-O {[%clk 0:03:06.6]}
7. Qc2 {[%clk 0:03:11.1]} 7... b6 {[%clk 0:03:06.3]} 8. Rd1 {[%clk 0:03:09.7]}
8... Bb7 {[%clk 0:03:07.7]} 9. Bf4 {[%clk 0:03:08.2]} 9... Nbd7 {[%clk 0:03:08]}
10. Nbd2 {[%clk 0:03:05.5]} 10... c5 {[%clk 0:03:08.9]} 11. dxc5 {[%clk
0:03:02.7]} 11... Nxc5 {[%clk 0:03:10.2]} 12. cxd5 {[%clk 0:03:01.9]} 12... Nxd5
{[%clk 0:03:09.9]} 13. Nc4 {[%clk 0:02:52.2]} 13... Rc8 {[%clk 0:03:06.9]} 14.
e4 {[%clk 0:02:52]} 14... Nb4 {[%clk 0:03:07.4]} 15. Qb1 {[%clk 0:02:36.7]}
15... Qe8 {[%clk 0:02:51.1]} 16. Nd6 {[%clk 0:02:25.4]} 16... Bxd6 {[%clk
0:02:49.6]} 17. Bxd6 {[%clk 0:02:26.3]} 17... Bxe4 {[%clk 0:02:50.9]} 18. Qc1
{[%clk 0:02:19.1]} 18... Nb3 {[%clk 0:02:45.1]} 19. axb3 {[%clk 0:02:16.9]}
19... Rxc1 {[%clk 0:02:44.8]} 20. Rdxc1 {[%clk 0:02:13.6]} 20... Nc2 {[%clk
0:02:35.3]} 21. Rxa7 {[%clk 0:02:09]} 21... Qc6 {[%clk 0:02:35]} 22. Bxf8 {[%clk
0:02:05.7]} 22... Bxf3 {[%clk 0:02:25.1]} 23. Be7 {[%clk 0:01:44.4]} 23... Bxg2
{[%clk 0:02:12]} 24. Rxc2 {[%clk 0:01:43.4]} 24... Qxc2 {[%clk 0:02:10.9]} 25.
Kxg2 {[%clk 0:01:44.6]} 25... h6 {[%clk 0:02:06.4]} 26. b4 {[%clk 0:01:28.5]}
26... Qxb2 {[%clk 0:01:53.3]} 27. Ra8+ {[%clk 0:01:24.4]} 27... Kh7 {[%clk
0:01:51.8]} 28. Rf8 {[%clk 0:01:16.5]} 28... Kg6 {[%clk 0:01:46.5]} 29. h4
{[%clk 0:01:16.1]} 29... h5 {[%clk 0:01:40.4]} 30. Rb8 {[%clk 0:01:09.7]} 30...
Qd4 {[%clk 0:01:33.8]} 31. Bd8 {[%clk 0:01:01.3]} 31... Qd6 {[%clk 0:01:23.6]}
0-1

[Event "*** Titled Tuesday Blitz AM"]
[Site "Chess.com"]
[Date "2020.01.07"]
[Round "4"]
[White "Jabberwockiez"]
[Black "Kubas1010"]
[Result "1-0"]
[WhiteElo "2288"]
[BlackElo "2609"]
[TimeControl "180+2"]
[EndTime "9:50:20 PST"]
[Termination "Jabberwockiez won by checkmate"]

1. e4 {[%clk 0:03:01.9]} 1... c5 {[%clk 0:02:59.3]} 2. Nc3 {[%clk 0:03:02.4]}
2... d6 {[%clk 0:02:59.5]} 3. Nf3 {[%clk 0:03:02.7]} 3... Nf6 {[%clk 0:02:58.4]}
4. d4 {[%clk 0:03:03.5]} 4... cxd4 {[%clk 0:02:59]} 5. Nxd4 {[%clk 0:03:05.4]}
5... Bd7 {[%clk 0:03:00.7]} 6. Bg5 {[%clk 0:03:04.4]} 6... e6 {[%clk 0:03:01.4]}
7. Bb5 {[%clk 0:03:00.9]} 7... Nc6 {[%clk 0:02:59.7]} 8. O-O {[%clk 0:02:38.3]}
8... Be7 {[%clk 0:02:52.5]} 9. Nxc6 {[%clk 0:02:30.3]} 9... bxc6 {[%clk
0:02:53.2]} 10. Bd3 {[%clk 0:02:30.2]} 10... O-O {[%clk 0:02:48.5]} 11. f4
{[%clk 0:02:24.3]} 11... Qb6+ {[%clk 0:02:46.1]} 12. Kh1 {[%clk 0:02:24.5]}
12... Qxb2 {[%clk 0:02:44.8]} 13. Qd2 {[%clk 0:02:25.1]} 13... Qa3 {[%clk
0:02:27.5]} 14. e5 {[%clk 0:02:14.1]} 14... dxe5 {[%clk 0:02:27.7]} 15. fxe5
{[%clk 0:02:04.2]} 15... Nd5 {[%clk 0:02:28.2]} 16. Ne4 {[%clk 0:02:05.4]} 16...
Bb4 {[%clk 0:02:04.9]} 17. Qe2 {[%clk 0:01:57.9]} 17... Bc3 {[%clk 0:01:30.5]}
18. Nf6+ {[%clk 0:01:53.2]} 18... Nxf6 {[%clk 0:01:18.6]} 19. Bxf6 {[%clk
0:01:19.1]} 19... Bxa1 {[%clk 0:01:16]} 20. Bxh7+ {[%clk 0:01:10.5]} 20... Kh8
{[%clk 0:01:08]} 21. Qh5 {[%clk 0:01:07.3]} 21... gxf6 {[%clk 0:00:23.9]} 22.
Bg6+ {[%clk 0:01:06.4]} 22... Kg7 {[%clk 0:00:20.1]} 23. Qh7# {[%clk 0:01:06.9]}
1-0

[Event "*** Titled Tuesday Blitz AM"]
[Site "Chess.com"]
[Date "2020.01.07"]
[Round "4"]
[White "yy2324"]
[Black "Last7Samurai"]
[Result "0-1"]
[WhiteElo "2547"]
[BlackElo "2827"]
[TimeControl "180+2"]
[EndTime "9:50:28 PST"]
[Termination "Last7Samurai won by resignation"]

1. e4 {[%clk 0:03:01.9]} 1... e5 {[%clk 0:03:00.6]} 2. Nf3 {[%clk 0:03:03.3]}
2... Nc6 {[%clk 0:03:01.7]} 3. Bb5 {[%clk 0:03:04.3]} 3... a6 {[%clk 0:03:02.4]}
4. Ba4 {[%clk 0:03:05.4]} 4... g6 {[%clk 0:03:03.8]} 5. O-O {[%clk 0:03:05.3]}
5... Bg7 {[%clk 0:03:05]} 6. c3 {[%clk 0:03:02.4]} 6... d6 {[%clk 0:03:05.6]} 7.
d4 {[%clk 0:03:02.4]} 7... Bd7 {[%clk 0:03:06.8]} 8. Re1 {[%clk 0:03:01.6]} 8...
Nf6 {[%clk 0:03:07.5]} 9. h3 {[%clk 0:03:01.3]} 9... O-O {[%clk 0:03:07.7]} 10.
Nbd2 {[%clk 0:03:02.2]} 10... Re8 {[%clk 0:03:08.7]} 11. Bc2 {[%clk 0:03:01.4]}
11... h6 {[%clk 0:03:07.3]} 12. Nf1 {[%clk 0:02:59.5]} 12... Nh5 {[%clk
0:03:08]} 13. Be3 {[%clk 0:02:50.9]} 13... Nf4 {[%clk 0:03:04.9]} 14. Ng3 {[%clk
0:02:45.5]} 14... Qf6 {[%clk 0:03:00.8]} 15. dxe5 {[%clk 0:02:37.4]} 15... Nxe5
{[%clk 0:03:00.6]} 16. Nxe5 {[%clk 0:02:37.6]} 16... Qxe5 {[%clk 0:03:00.2]} 17.
Qd2 {[%clk 0:02:37.2]} 17... g5 {[%clk 0:02:36.5]} 18. Bd4 {[%clk 0:02:23.6]}
18... Qe7 {[%clk 0:02:36.7]} 19. Bxg7 {[%clk 0:02:14.5]} 19... Kxg7 {[%clk
0:02:38.6]} 20. Nf5+ {[%clk 0:02:16.4]} 20... Bxf5 {[%clk 0:02:38.5]} 21. exf5
{[%clk 0:02:18.3]} 21... Qf6 {[%clk 0:02:33.8]} 22. Kh2 {[%clk 0:02:10.9]} 22...
Kg8 {[%clk 0:02:24.1]} 23. g3 {[%clk 0:02:10.7]} 23... Nh5 {[%clk 0:02:25]} 24.
Qd5 {[%clk 0:02:02.5]} 24... c6 {[%clk 0:02:23.6]} 25. Qf3 {[%clk 0:02:02.7]}
25... Ng7 {[%clk 0:02:24.1]} 26. Rad1 {[%clk 0:01:38.6]} 26... d5 {[%clk
0:02:20.1]} 27. Qd3 {[%clk 0:01:17.9]} 27... Rxe1 {[%clk 0:02:17.2]} 28. Rxe1
{[%clk 0:01:19.8]} 28... Re8 {[%clk 0:02:18.8]} 29. Rxe8+ {[%clk 0:01:13.3]}
29... Nxe8 {[%clk 0:02:20.7]} 30. Qe3 {[%clk 0:01:15]} 30... Nd6 {[%clk
0:02:20.5]} 31. Qa7 {[%clk 0:00:42.9]} 31... Qe7 {[%clk 0:02:18.5]} 32. Qe3
{[%clk 0:00:39.9]} 32... Qxe3 {[%clk 0:02:18.2]} 33. fxe3 {[%clk 0:00:41.8]}
33... Kg7 {[%clk 0:02:19.9]} 34. Kg2 {[%clk 0:00:42.4]} 34... Kf6 {[%clk
0:02:20.6]} 35. g4 {[%clk 0:00:43.8]} 35... Nc4 {[%clk 0:02:19.8]} 36. Kf3
{[%clk 0:00:42.4]} 36... Nxb2 {[%clk 0:02:17.8]} 37. e4 {[%clk 0:00:37.7]} 37...
Ke5 {[%clk 0:02:15.5]} 38. exd5 {[%clk 0:00:35.4]} 38... cxd5 {[%clk 0:02:17.4]}
39. Bb3 {[%clk 0:00:37.2]} 39... Nd3 {[%clk 0:02:15.3]} 40. Bc2 {[%clk
0:00:23.4]} 40... Ne1+ {[%clk 0:02:15]} 0-1

[Event "*** Titled Tuesday Blitz AM"]
[Site "Chess.com"]
[Date "2020.01.07"]
[Round "4"]
[White "kleinebeer98"]
[Black "Zarikovs1999"]
[Result "1-0"]
[WhiteElo "2681"]
[BlackElo "2359"]
[TimeControl "180+2"]
[EndTime "9:50:34 PST"]
[Termination "kleinebeer98 won on time"]

1. e4 {[%clk 0:03:01.9]} 1... c5 {[%clk 0:02:47.3]} 2. Nf3 {[%clk 0:03:02.8]}
2... d6 {[%clk 0:02:46.6]} 3. d4 {[%clk 0:03:04.2]} 3... cxd4 {[%clk 0:02:48]}
4. Nxd4 {[%clk 0:03:06.1]} 4... Nf6 {[%clk 0:02:49.1]} 5. Nc3 {[%clk 0:03:07.6]}
5... a6 {[%clk 0:02:50.2]} 6. a3 {[%clk 0:03:09.1]} 6... e5 {[%clk 0:02:50.7]}
7. Nf5 {[%clk 0:03:10.4]} 7... Bxf5 {[%clk 0:02:38.7]} 8. exf5 {[%clk
0:03:12.3]} 8... d5 {[%clk 0:02:40.1]} 9. Bg5 {[%clk 0:03:13.3]} 9... d4 {[%clk
0:02:41.3]} 10. Bxf6 {[%clk 0:03:02.9]} 10... gxf6 {[%clk 0:02:26.8]} 11. Ne4
{[%clk 0:03:04]} 11... Be7 {[%clk 0:02:22.4]} 12. g3 {[%clk 0:03:03.2]} 12...
Nd7 {[%clk 0:02:11.4]} 13. Bg2 {[%clk 0:03:03.4]} 13... Rc8 {[%clk 0:02:12.3]}
14. O-O {[%clk 0:03:03.7]} 14... h5 {[%clk 0:02:03.1]} 15. h4 {[%clk 0:03:04.4]}
15... Qc7 {[%clk 0:01:59.3]} 16. Rc1 {[%clk 0:02:58.2]} 16... Nc5 {[%clk
0:01:40.3]} 17. c3 {[%clk 0:02:52.3]} 17... Nxe4 {[%clk 0:01:28.8]} 18. Bxe4
{[%clk 0:02:54.2]} 18... dxc3 {[%clk 0:01:10.6]} 19. Rxc3 {[%clk 0:02:56.1]}
19... Qb8 {[%clk 0:00:54.5]} 20. Qa4+ {[%clk 0:02:50.6]} 20... Kf8 {[%clk
0:00:49.4]} 21. Rfc1 {[%clk 0:02:42.5]} 21... Rxc3 {[%clk 0:00:33.4]} 22. Rxc3
{[%clk 0:02:44.4]} 22... Kg7 {[%clk 0:00:34.6]} 23. Rb3 {[%clk 0:02:28.4]} 23...
b6 {[%clk 0:00:20.6]} 24. Qxa6 {[%clk 0:02:29.1]} 24... Bc5 {[%clk 0:00:20.9]}
25. Qe2 {[%clk 0:02:27.5]} 25... Qd6 {[%clk 0:00:17]} 26. Rd3 {[%clk 0:02:25.2]}
26... Bd4 {[%clk 0:00:17.9]} 27. b4 {[%clk 0:02:21.1]} 27... Qc7 {[%clk
0:00:16.7]} 28. Kg2 {[%clk 0:02:19.2]} 28... Qc1 {[%clk 0:00:12.4]} 29. Bf3
{[%clk 0:02:16.9]} 29... Rc8 {[%clk 0:00:08.7]} 30. Rd2 {[%clk 0:02:06.6]} 30...
Rc3 {[%clk 0:00:05.9]} 31. Bxh5 {[%clk 0:02:06.4]} 31... Rxa3 {[%clk 0:00:04.4]}
32. Rc2 {[%clk 0:02:00.8]} 32... Qb1 {[%clk 0:00:04.5]} 33. Qg4+ {[%clk
0:01:59.7]} 33... Kf8 {[%clk 0:00:03.2]} 34. Rc7 {[%clk 0:02:00]} 1-0

[Event "*** Titled Tuesday Blitz AM"]
[Site "Chess.com"]
[Date "2020.01.07"]
[Round "4"]
[White "Feegus"]
[Black "alex_zapata"]
[Result "1-0"]
[WhiteElo "2560"]
[BlackElo "2291"]
[TimeControl "180+2"]
[EndTime "9:50:41 PST"]
[Termination "Feegus won by resignation"]

1. Nf3 {[%clk 0:02:55.8]} 1... d5 {[%clk 0:02:59.9]} 2. g3 {[%clk 0:02:57.7]}
2... Nf6 {[%clk 0:02:58.2]} 3. Bg2 {[%clk 0:02:57.8]} 3... c5 {[%clk 0:02:59.2]}
4. O-O {[%clk 0:02:58.2]} 4... Nc6 {[%clk 0:03:00.8]} 5. d4 {[%clk 0:02:59.7]}
5... e6 {[%clk 0:03:01.3]} 6. c4 {[%clk 0:03:00.7]} 6... Be7 {[%clk 0:03:02.1]}
7. Nc3 {[%clk 0:02:59.5]} 7... O-O {[%clk 0:03:01.7]} 8. cxd5 {[%clk 0:03:00.6]}
8... Nxd5 {[%clk 0:03:03.6]} 9. e4 {[%clk 0:03:01.2]} 9... Nxc3 {[%clk 0:02:51]}
10. bxc3 {[%clk 0:03:03.1]} 10... Qa5 {[%clk 0:02:51]} 11. Qb3 {[%clk
0:03:00.9]} 11... Bf6 {[%clk 0:02:32.7]} 12. e5 {[%clk 0:02:55.2]} 12... Be7
{[%clk 0:02:31.8]} 13. Be3 {[%clk 0:02:54.3]} 13... Rd8 {[%clk 0:02:25.1]} 14.
h4 {[%clk 0:02:52.4]} 14... Bd7 {[%clk 0:02:21.1]} 15. h5 {[%clk 0:02:52.8]}
15... h6 {[%clk 0:02:20.7]} 16. g4 {[%clk 0:02:50.6]} 16... Rac8 {[%clk
0:02:04.1]} 17. Rad1 {[%clk 0:02:49.5]} 17... cxd4 {[%clk 0:02:04.7]} 18. cxd4
{[%clk 0:02:51.4]} 18... Qb4 {[%clk 0:02:03.4]} 19. Qd3 {[%clk 0:02:46.5]} 19...
Na5 {[%clk 0:01:59.9]} 20. g5 {[%clk 0:02:44.2]} 20... Bb5 {[%clk 0:01:57.6]}
21. Qe4 {[%clk 0:02:43.5]} 21... Bxf1 {[%clk 0:01:58]} 22. Rxf1 {[%clk
0:02:43.5]} 22... hxg5 {[%clk 0:01:54.6]} 23. Bxg5 {[%clk 0:02:45.4]} 23... Nc4
{[%clk 0:01:37.3]} 24. h6 {[%clk 0:02:41.8]} 24... g6 {[%clk 0:01:27.4]} 25. Bh3
{[%clk 0:02:42.5]} 25... Rc7 {[%clk 0:00:57.1]} 26. h7+ {[%clk 0:02:18.5]} 26...
Kh8 {[%clk 0:00:30]} 27. Bh6 {[%clk 0:01:47.5]} 27... Qb5 {[%clk 0:00:19.2]} 28.
Qf4 {[%clk 0:01:45.4]} 28... Qe8 {[%clk 0:00:12.7]} 29. Ng5 {[%clk 0:01:38.4]}
29... Bxg5 {[%clk 0:00:13.8]} 30. Bxg5 {[%clk 0:01:39.7]} 30... Kxh7 {[%clk
0:00:10.8]} 31. Qh4+ {[%clk 0:01:39.5]} 31... Kg8 {[%clk 0:00:10]} 32. Bf6
{[%clk 0:01:40.5]} 1-0

[Event "*** Titled Tuesday Blitz AM"]
[Site "Chess.com"]
[Date "2020.01.07"]
[Round "4"]
[White "KaydenTroffChess"]
[Black "WelshTiger"]
[Result "1-0"]
[WhiteElo "2713"]
[BlackElo "2380"]
[TimeControl "180+2"]
[EndTime "9:50:49 PST"]
[Termination "KaydenTroffChess won by resignation"]

1. d4 {[%clk 0:03:01.9]} 1... Nf6 {[%clk 0:03:00.6]} 2. Nf3 {[%clk 0:03:03.4]}
2... g6 {[%clk 0:03:01]} 3. Bg5 {[%clk 0:03:03.9]} 3... Bg7 {[%clk 0:03:01]} 4.
Nbd2 {[%clk 0:03:04.7]} 4... O-O {[%clk 0:03:01.6]} 5. e3 {[%clk 0:03:06]} 5...
d6 {[%clk 0:03:01.4]} 6. Bd3 {[%clk 0:03:06.5]} 6... c5 {[%clk 0:03:02.5]} 7. c3
{[%clk 0:03:06.8]} 7... Nc6 {[%clk 0:03:00.2]} 8. O-O {[%clk 0:03:07.5]} 8...
Bg4 {[%clk 0:02:49.4]} 9. h3 {[%clk 0:03:05.5]} 9... Bxf3 {[%clk 0:02:50.6]} 10.
Nxf3 {[%clk 0:03:04.9]} 10... Qb6 {[%clk 0:02:41.4]} 11. Rb1 {[%clk 0:03:03.4]}
11... Rac8 {[%clk 0:02:40.2]} 12. Qe2 {[%clk 0:02:57]} 12... Rfe8 {[%clk
0:02:37.9]} 13. Rfd1 {[%clk 0:02:56.4]} 13... e5 {[%clk 0:02:34.5]} 14. dxe5
{[%clk 0:02:56.1]} 14... dxe5 {[%clk 0:02:35.4]} 15. Bxf6 {[%clk 0:02:54.2]}
15... Bxf6 {[%clk 0:02:36.2]} 16. Be4 {[%clk 0:02:55.3]} 16... Rcd8 {[%clk
0:02:27.8]} 17. Nd2 {[%clk 0:02:55.4]} 17... Bg7 {[%clk 0:02:20.5]} 18. Nc4
{[%clk 0:02:54.5]} 18... Qc7 {[%clk 0:02:21.6]} 19. Qf3 {[%clk 0:02:53.3]} 19...
Rxd1+ {[%clk 0:02:03.7]} 20. Rxd1 {[%clk 0:02:52.6]} 20... Rd8 {[%clk
0:02:03.4]} 21. Bxc6 {[%clk 0:02:43.4]} 21... Rxd1+ {[%clk 0:02:00.9]} 22. Qxd1
{[%clk 0:02:44.2]} 22... bxc6 {[%clk 0:01:52.9]} 23. Qd6 {[%clk 0:02:40.1]}
23... Qxd6 {[%clk 0:01:53.5]} 24. Nxd6 {[%clk 0:02:42]} 24... Bf8 {[%clk
0:01:50.3]} 25. Nc4 {[%clk 0:02:41.5]} 25... f5 {[%clk 0:01:50.1]} 26. Na5
{[%clk 0:02:42.1]} 26... Kf7 {[%clk 0:01:50.9]} 27. Nxc6 {[%clk 0:02:43.1]}
27... Ke6 {[%clk 0:01:52.3]} 28. Nxa7 {[%clk 0:02:43.3]} 28... Kd5 {[%clk
0:01:53.7]} 29. Kf1 {[%clk 0:02:39.8]} 29... c4 {[%clk 0:01:48.4]} 30. b4 {[%clk
0:02:25.6]} 30... cxb3 {[%clk 0:01:45]} 31. axb3 {[%clk 0:02:25]} 31... Kc5
{[%clk 0:01:46.4]} 32. c4 {[%clk 0:02:20]} 32... Kb4 {[%clk 0:01:42.1]} 33. Nc6+
{[%clk 0:02:11.7]} 33... Kxb3 {[%clk 0:01:43.1]} 34. Nxe5 {[%clk 0:02:12.7]}
34... Bg7 {[%clk 0:01:42]} 35. f4 {[%clk 0:02:11]} 35... Kb4 {[%clk 0:01:32.9]}
36. Ke2 {[%clk 0:02:11.3]} 36... Kc5 {[%clk 0:01:28.8]} 37. Kd3 {[%clk
0:02:11.3]} 37... g5 {[%clk 0:01:21.1]} 38. g4 {[%clk 0:01:58.8]} 38... fxg4
{[%clk 0:01:08]} 39. hxg4 {[%clk 0:01:59.3]} 39... gxf4 {[%clk 0:01:04.3]} 40.
exf4 {[%clk 0:02:01.2]} 40... Kd6 {[%clk 0:00:57.5]} 41. Kd4 {[%clk 0:01:59.2]}
41... Ke6 {[%clk 0:00:52.5]} 42. f5+ {[%clk 0:01:54.7]} 42... Kf6 {[%clk
0:00:51.9]} 43. c5 {[%clk 0:01:51.9]} 43... Kg5 {[%clk 0:00:51.3]} 44. Ke4
{[%clk 0:01:49.2]} 44... Bxe5 {[%clk 0:00:45.6]} 45. Kxe5 {[%clk 0:01:49.8]}
45... Kxg4 {[%clk 0:00:47.2]} 46. f6 {[%clk 0:01:51.2]} 1-0

[Event "*** Titled Tuesday Blitz AM"]
[Site "Chess.com"]
[Date "2020.01.07"]
[Round "4"]
[White "Generalas"]
[Black "Evgeny81"]
[Result "1/2-1/2"]
[WhiteElo "2233"]
[BlackElo "2522"]
[TimeControl "180+2"]
[EndTime "9:50:58 PST"]
[Termination "Game drawn by repetition"]

1. e4 {[%clk 0:03:01.9]} 1... e5 {[%clk 0:02:59.7]} 2. Nf3 {[%clk 0:03:02.4]}
2... Nc6 {[%clk 0:03:01.3]} 3. Bb5 {[%clk 0:03:02.6]} 3... a6 {[%clk 0:03:02.5]}
4. Ba4 {[%clk 0:03:03.8]} 4... Nf6 {[%clk 0:03:03.9]} 5. O-O {[%clk 0:03:04.7]}
5... Be7 {[%clk 0:03:05.2]} 6. Re1 {[%clk 0:03:05.6]} 6... b5 {[%clk 0:03:06.5]}
7. Bb3 {[%clk 0:03:06.9]} 7... d6 {[%clk 0:03:08.1]} 8. c3 {[%clk 0:03:06.2]}
8... O-O {[%clk 0:03:09.3]} 9. h3 {[%clk 0:03:06.8]} 9... Na5 {[%clk 0:03:10.3]}
10. Bc2 {[%clk 0:03:07.7]} 10... c5 {[%clk 0:03:11.9]} 11. d4 {[%clk 0:03:08.9]}
11... Qc7 {[%clk 0:03:13.4]} 12. Nbd2 {[%clk 0:03:10.1]} 12... Be6 {[%clk
0:03:12]} 13. d5 {[%clk 0:02:58.6]} 13... Bd7 {[%clk 0:03:13]} 14. Nf1 {[%clk
0:02:59.7]} 14... c4 {[%clk 0:03:13.2]} 15. g4 {[%clk 0:02:57.9]} 15... g6
{[%clk 0:03:13.5]} 16. Ng3 {[%clk 0:02:58.3]} 16... Rfb8 {[%clk 0:03:13.5]} 17.
Kh2 {[%clk 0:02:57.4]} 17... Ne8 {[%clk 0:03:14]} 18. Rg1 {[%clk 0:02:57.6]}
18... Ng7 {[%clk 0:03:13]} 19. Bh6 {[%clk 0:02:55.8]} 19... f6 {[%clk
0:03:07.2]} 20. Qd2 {[%clk 0:02:53]} 20... Bf8 {[%clk 0:03:01]} 21. g5 {[%clk
0:02:46]} 21... fxg5 {[%clk 0:02:36.6]} 22. Bxg5 {[%clk 0:02:27.4]} 22... Nb7
{[%clk 0:02:34.6]} 23. Nh4 {[%clk 0:02:22.9]} 23... Nd8 {[%clk 0:02:02.4]} 24.
f4 {[%clk 0:02:15.7]} 24... exf4 {[%clk 0:01:59.5]} 25. Qxf4 {[%clk 0:02:08.3]}
25... Nf7 {[%clk 0:02:00.5]} 26. Bf6 {[%clk 0:02:06.7]} 26... Ne5 {[%clk
0:01:55.4]} 27. Raf1 {[%clk 0:02:04.4]} 27... Rb7 {[%clk 0:01:36.6]} 28. Bxe5
{[%clk 0:01:59.5]} 28... Bxh3 {[%clk 0:01:28.8]} 29. Kxh3 {[%clk 0:01:33.6]}
29... dxe5 {[%clk 0:01:29.4]} 30. Qf6 {[%clk 0:01:30.8]} 30... Rb6 {[%clk
0:01:22.8]} 31. Qg5 {[%clk 0:01:24.1]} 31... Be7 {[%clk 0:01:19.5]} 32. Qh6
{[%clk 0:01:20.6]} 32... g5 {[%clk 0:01:09.8]} 33. Ngf5 {[%clk 0:01:00.1]} 33...
Rxh6 {[%clk 0:01:02.2]} 34. Nxh6+ {[%clk 0:01:00.7]} 34... Kh8 {[%clk
0:01:03.8]} 35. Nf7+ {[%clk 0:01:00.8]} 35... Kg8 {[%clk 0:01:05]} 36. Nh6+
{[%clk 0:00:50.5]} 36... Kh8 {[%clk 0:01:06]} 37. Nf7+ {[%clk 0:00:49.9]} 37...
Kg8 {[%clk 0:01:07.4]} 38. Nh6+ {[%clk 0:00:50.4]} 1/2-1/2